[Event "*** Titled Tuesday Blitz"]
[Site "Chess.com"]
[Date "2020.10.20"]
[Round "1"]
[White "frederiksvane"]
[Black "geordie_derraugh"]
[Result "0-1"]
[WhiteElo "2670"]
[BlackElo "2358"]
[TimeControl "180+1"]
[EndTime "10:08:13 PDT"]
[Termination "geordie_derraugh won on time"]

1. Nf3 {[%clk 0:02:52.8]} 1... Nf6 {[%clk 0:02:59.1]} 2. g3 {[%clk 0:02:50.1]}
2... g6 {[%clk 0:02:59.2]} 3. Bg2 {[%clk 0:02:45.6]} 3... Bg7 {[%clk 0:02:59.1]}
4. O-O {[%clk 0:02:44.9]} 4... O-O {[%clk 0:02:59.2]} 5. d3 {[%clk 0:02:43.8]}
5... d5 {[%clk 0:02:59]} 6. Nbd2 {[%clk 0:02:42.9]} 6... c5 {[%clk 0:02:58.6]}
7. c3 {[%clk 0:02:42]} 7... Nc6 {[%clk 0:02:58.3]} 8. Qc2 {[%clk 0:02:31.6]}
8... Re8 {[%clk 0:02:56.2]} 9. e4 {[%clk 0:02:30.1]} 9... e5 {[%clk 0:02:51.6]}
10. Re1 {[%clk 0:02:26.9]} 10... Be6 {[%clk 0:02:35.6]} 11. Ng5 {[%clk
0:02:22.7]} 11... Bg4 {[%clk 0:02:29]} 12. h3 {[%clk 0:02:18.2]} 12... Bc8
{[%clk 0:02:29.1]} 13. Qb3 {[%clk 0:01:31.9]} 13... h6 {[%clk 0:02:05.9]} 14.
Ngf3 {[%clk 0:01:24.9]} 14... dxe4 {[%clk 0:02:06.1]} 15. dxe4 {[%clk
0:01:25.7]} 15... Qc7 {[%clk 0:02:01.8]} 16. Qc2 {[%clk 0:00:55.4]} 16... Be6
{[%clk 0:01:58.8]} 17. Bf1 {[%clk 0:00:46.1]} 17... Rad8 {[%clk 0:01:54.3]} 18.
a4 {[%clk 0:00:42.1]} 18... Na5 {[%clk 0:01:43.8]} 19. Kg2 {[%clk 0:00:36]}
19... c4 {[%clk 0:01:43.8]} 20. Be2 {[%clk 0:00:27.3]} 20... Qc8 {[%clk
0:00:45]} 21. Ng1 {[%clk 0:00:18.5]} 21... Nd7 {[%clk 0:00:45.5]} 22. Nf1 {[%clk
0:00:17.9]} 22... Nc5 {[%clk 0:00:44.9]} 23. Be3 {[%clk 0:00:17.2]} 23... Nxe4
{[%clk 0:00:37.7]} 24. Bf3 {[%clk 0:00:13.1]} 24... Ng5 {[%clk 0:00:28.5]} 25.
Bxg5 {[%clk 0:00:12.7]} 25... hxg5 {[%clk 0:00:29.4]} 26. Rad1 {[%clk
0:00:13.1]} 26... Rxd1 {[%clk 0:00:27]} 27. Rxd1 {[%clk 0:00:14]} 27... Nc6
{[%clk 0:00:21.5]} 28. Ne3 {[%clk 0:00:13.5]} 28... Ne7 {[%clk 0:00:17.8]} 29.
g4 {[%clk 0:00:11.5]} 29... f5 {[%clk 0:00:16.9]} 30. Ne2 {[%clk 0:00:11.6]}
30... Qc5 {[%clk 0:00:15.7]} 31. Ng3 {[%clk 0:00:08.1]} 31... e4 {[%clk
0:00:14]} 32. Be2 {[%clk 0:00:04.4]} 32... Qc6 {[%clk 0:00:13.5]} 33. gxf5
{[%clk 0:00:02.7]} 33... gxf5 {[%clk 0:00:14.4]} 34. Nh5 {[%clk 0:00:03.2]}
34... f4 {[%clk 0:00:13.8]} 35. Bg4 {[%clk 0:00:02.4]} 35... fxe3 {[%clk
0:00:12.1]} 36. fxe3 {[%clk 0:00:03.3]} 36... Bxg4 {[%clk 0:00:11.2]} 37. hxg4
{[%clk 0:00:04.2]} 37... Ng6 {[%clk 0:00:10.7]} 38. Qe2 {[%clk 0:00:02]} 38...
Rf8 {[%clk 0:00:09.6]} 39. Rf1 {[%clk 0:00:02.1]} 39... Nh4+ {[%clk 0:00:09.7]}
40. Kh3 {[%clk 0:00:02.5]} 40... Rxf1 {[%clk 0:00:07.4]} 41. Qxf1 {[%clk
0:00:03.4]} 41... Qe6 {[%clk 0:00:07.2]} 42. Qd1 {[%clk 0:00:03.5]} 42... Qf7
{[%clk 0:00:06.8]} 43. Qd8+ {[%clk 0:00:03.7]} 43... Kh7 {[%clk 0:00:06.2]} 44.
Qxg5 {[%clk 0:00:04.1]} 44... Ng6 {[%clk 0:00:04.7]} 45. Qf5 {[%clk 0:00:04]}
45... Qxf5 {[%clk 0:00:04.9]} 46. gxf5 {[%clk 0:00:04.9]} 46... Ne5 {[%clk
0:00:05.4]} 47. Ng3 {[%clk 0:00:04.6]} 47... Nd3 {[%clk 0:00:03.8]} 48. Nxe4
{[%clk 0:00:04.5]} 48... Nxb2 {[%clk 0:00:04.4]} 49. Nd6 {[%clk 0:00:04.9]}
49... Nxa4 {[%clk 0:00:04.6]} 50. Nxc4 {[%clk 0:00:04.7]} 50... Nxc3 {[%clk
0:00:04.9]} 51. Kg4 {[%clk 0:00:04.8]} 51... Nd5 {[%clk 0:00:04.8]} 52. e4
{[%clk 0:00:04.6]} 52... Nf6+ {[%clk 0:00:03.9]} 53. Kf4 {[%clk 0:00:04.9]}
53... b5 {[%clk 0:00:04.8]} 54. Na5 {[%clk 0:00:03.4]} 54... Nd7 {[%clk
0:00:05]} 55. Nc6 {[%clk 0:00:02.9]} 55... a6 {[%clk 0:00:05]} 56. Ke3 {[%clk
0:00:01.9]} 56... Kg8 {[%clk 0:00:05]} 57. Kd3 {[%clk 0:00:01.9]} 57... Kf7
{[%clk 0:00:05.6]} 58. Kc2 {[%clk 0:00:01.4]} 58... Nc5 {[%clk 0:00:05]} 0-1

[Event "*** Titled Tuesday Blitz"]
[Site "Chess.com"]
[Date "2020.10.20"]
[Round "1"]
[White "elohunter1999"]
[Black "Ashedu66"]
[Result "1-0"]
[WhiteElo "2527"]
[BlackElo "2184"]
[TimeControl "180+1"]
[EndTime "10:08:14 PDT"]
[Termination "elohunter1999 won on time"]

1. e4 {[%clk 0:03:00.9]} 1... e5 {[%clk 0:02:58.6]} 2. Nf3 {[%clk 0:03:00.7]}
2... Nc6 {[%clk 0:02:58]} 3. Bb5 {[%clk 0:03:01.3]} 3... Nge7 {[%clk 0:02:56.9]}
4. Nc3 {[%clk 0:03:00.3]} 4... g6 {[%clk 0:02:55.5]} 5. d4 {[%clk 0:02:59.9]}
5... exd4 {[%clk 0:02:55]} 6. Nd5 {[%clk 0:02:58.2]} 6... Bg7 {[%clk 0:02:54.2]}
7. Bg5 {[%clk 0:02:57.9]} 7... h6 {[%clk 0:02:52.7]} 8. Bf6 {[%clk 0:02:57.6]}
8... Bxf6 {[%clk 0:02:51.8]} 9. Nxf6+ {[%clk 0:02:57.2]} 9... Kf8 {[%clk
0:02:51]} 10. Qd2 {[%clk 0:02:56.8]} 10... Nf5 {[%clk 0:02:45.6]} 11. Nd5 {[%clk
0:02:53.2]} 11... Nd6 {[%clk 0:02:37.2]} 12. Bd3 {[%clk 0:02:53.1]} 12... Kg7
{[%clk 0:02:25.6]} 13. O-O-O {[%clk 0:02:50.9]} 13... a5 {[%clk 0:02:08.9]} 14.
Rhe1 {[%clk 0:02:44.5]} 14... Nb4 {[%clk 0:02:04]} 15. Nxb4 {[%clk 0:02:39.7]}
15... axb4 {[%clk 0:02:01.8]} 16. Qxb4 {[%clk 0:02:39.8]} 16... Rxa2 {[%clk
0:01:43.3]} 17. Qxd4+ {[%clk 0:02:38.7]} 17... Kh7 {[%clk 0:01:42.3]} 18. e5
{[%clk 0:02:15.6]} 18... Ne8 {[%clk 0:01:31.2]} 19. h4 {[%clk 0:01:52.9]} 19...
Ng7 {[%clk 0:01:20.5]} 20. h5 {[%clk 0:01:46.5]} 20... Ne6 {[%clk 0:01:09.7]}
21. hxg6+ {[%clk 0:01:43.4]} 21... fxg6 {[%clk 0:01:08.7]} 22. Qg4 {[%clk
0:01:41.2]} 22... Rg8 {[%clk 0:00:57.3]} 23. Rh1 {[%clk 0:01:37.3]} 23... Qf8
{[%clk 0:00:55.1]} 24. g3 {[%clk 0:01:08.2]} 24... d6 {[%clk 0:00:46.1]} 25. Bc4
{[%clk 0:00:58.1]} 25... Ra1+ {[%clk 0:00:42.5]} 26. Kd2 {[%clk 0:00:58.1]}
26... Rxd1+ {[%clk 0:00:41.4]} 27. Kxd1 {[%clk 0:00:54.8]} 27... dxe5 {[%clk
0:00:39.5]} 28. Bxe6 {[%clk 0:00:52.1]} 28... Qd6+ {[%clk 0:00:38.1]} 29. Kc1
{[%clk 0:00:52.3]} 29... Bxe6 {[%clk 0:00:36.8]} 30. Ng5+ {[%clk 0:00:51.4]}
30... Kg7 {[%clk 0:00:32.4]} 31. Nxe6+ {[%clk 0:00:34.2]} 31... Kf6 {[%clk
0:00:30.7]} 32. Rd1 {[%clk 0:00:14.4]} 32... Qxe6 {[%clk 0:00:29.5]} 33. Qh4+
{[%clk 0:00:14.2]} 33... Kg7 {[%clk 0:00:27.4]} 34. Qb4 {[%clk 0:00:14.1]} 34...
b6 {[%clk 0:00:19.9]} 35. Qb5 {[%clk 0:00:14.1]} 35... Rf8 {[%clk 0:00:17.5]}
36. b3 {[%clk 0:00:10.4]} 36... Rf7 {[%clk 0:00:15.8]} 37. f4 {[%clk 0:00:09.8]}
37... Qf6 {[%clk 0:00:13.9]} 38. fxe5 {[%clk 0:00:09.4]} 38... Qg5+ {[%clk
0:00:11.4]} 39. Kb2 {[%clk 0:00:09.9]} 39... Re7 {[%clk 0:00:10.7]} 40. Re1
{[%clk 0:00:07.6]} 40... Qxg3 {[%clk 0:00:08.2]} 41. Re4 {[%clk 0:00:08]} 41...
Qf3 {[%clk 0:00:07.4]} 42. Qd5 {[%clk 0:00:08.1]} 42... Qf5 {[%clk 0:00:06.5]}
43. Qd4 {[%clk 0:00:07.7]} 43... Qe6 {[%clk 0:00:05.7]} 44. b4 {[%clk
0:00:07.4]} 44... Rd7 {[%clk 0:00:05.1]} 45. Qc3 {[%clk 0:00:07.8]} 45... h5
{[%clk 0:00:04.2]} 46. Rf4 {[%clk 0:00:08.3]} 46... c5 {[%clk 0:00:03.6]} 47.
Rf6 {[%clk 0:00:08.3]} 47... cxb4 {[%clk 0:00:02.1]} 48. Qg3 {[%clk 0:00:08.5]}
48... Qd5 {[%clk 0:00:01.1]} 49. Qxg6+ {[%clk 0:00:08]} 1-0

[Event "*** Titled Tuesday Blitz"]
[Site "Chess.com"]
[Date "2020.10.20"]
[Round "1"]
[White "stolencandy13"]
[Black "Quiet_Desperation"]
[Result "1/2-1/2"]
[WhiteElo "2450"]
[BlackElo "1811"]
[TimeControl "180+1"]
[EndTime "10:08:15 PDT"]
[Termination "Game drawn by repetition"]

1. e4 {[%clk 0:02:58.4]} 1... e6 {[%clk 0:02:59.6]} 2. d4 {[%clk 0:02:58]} 2...
d5 {[%clk 0:02:59.7]} 3. Nd2 {[%clk 0:02:58.9]} 3... Nf6 {[%clk 0:02:58.5]} 4.
e5 {[%clk 0:02:56.9]} 4... Nfd7 {[%clk 0:02:58.7]} 5. Bd3 {[%clk 0:02:57.4]}
5... c5 {[%clk 0:02:58.7]} 6. c3 {[%clk 0:02:58.3]} 6... Nc6 {[%clk 0:02:58.9]}
7. Ne2 {[%clk 0:02:55.4]} 7... cxd4 {[%clk 0:02:58.9]} 8. cxd4 {[%clk
0:02:56.3]} 8... f6 {[%clk 0:02:59.2]} 9. exf6 {[%clk 0:02:48.1]} 9... Nxf6
{[%clk 0:02:58.7]} 10. O-O {[%clk 0:02:47.8]} 10... Bd6 {[%clk 0:02:59.3]} 11.
Nf3 {[%clk 0:02:47.8]} 11... Qc7 {[%clk 0:02:59.1]} 12. Bg5 {[%clk 0:02:44.8]}
12... O-O {[%clk 0:02:57.6]} 13. Rc1 {[%clk 0:02:43.9]} 13... Bd7 {[%clk
0:02:55.7]} 14. Ng3 {[%clk 0:02:34.7]} 14... Bf4 {[%clk 0:02:15.6]} 15. Bxf4
{[%clk 0:02:13.5]} 15... Qxf4 {[%clk 0:02:13.4]} 16. Bb5 {[%clk 0:02:05.5]}
16... Ng4 {[%clk 0:02:05.1]} 17. Qd2 {[%clk 0:01:40.5]} 17... Qf6 {[%clk
0:01:42.1]} 18. h3 {[%clk 0:01:24.5]} 18... Nh6 {[%clk 0:01:41.8]} 19. Rfe1
{[%clk 0:01:11.4]} 19... Rac8 {[%clk 0:01:28.9]} 20. Bxc6 {[%clk 0:01:09.8]}
20... Bxc6 {[%clk 0:01:27.6]} 21. Ne5 {[%clk 0:01:07.7]} 21... Nf7 {[%clk
0:01:18.8]} 22. Rc3 {[%clk 0:00:31.4]} 22... Nxe5 {[%clk 0:01:17.3]} 23. Rxe5
{[%clk 0:00:30]} 23... Bd7 {[%clk 0:01:08.7]} 24. Ree3 {[%clk 0:00:18.7]} 24...
Rxc3 {[%clk 0:01:04.8]} 25. Rxc3 {[%clk 0:00:19.6]} 25... e5 {[%clk 0:01:02.1]}
26. Rf3 {[%clk 0:00:15.9]} 26... Qe6 {[%clk 0:00:57]} 27. Rxf8+ {[%clk
0:00:16.2]} 27... Kxf8 {[%clk 0:00:55.8]} 28. dxe5 {[%clk 0:00:17.1]} 28... Qxe5
{[%clk 0:00:55.1]} 29. Ne2 {[%clk 0:00:17.3]} 29... Bc6 {[%clk 0:00:50.5]} 30.
Qf4+ {[%clk 0:00:16.3]} 30... Qxf4 {[%clk 0:00:46.6]} 31. Nxf4 {[%clk
0:00:17.2]} 31... Ke7 {[%clk 0:00:44.9]} 32. Kf1 {[%clk 0:00:16.9]} 32... Kd6
{[%clk 0:00:44.6]} 33. Ke2 {[%clk 0:00:16.6]} 33... Ke5 {[%clk 0:00:43.6]} 34.
g3 {[%clk 0:00:15.9]} 34... g5 {[%clk 0:00:41.8]} 35. Nd3+ {[%clk 0:00:13.4]}
35... Kd4 {[%clk 0:00:39.9]} 36. Kd2 {[%clk 0:00:13.5]} 36... Bb5 {[%clk
0:00:35.6]} 37. Ne1 {[%clk 0:00:12.3]} 37... h5 {[%clk 0:00:34.2]} 38. Nc2+
{[%clk 0:00:11.9]} 38... Ke5 {[%clk 0:00:32.8]} 39. Ke3 {[%clk 0:00:11.7]} 39...
Bd7 {[%clk 0:00:29.3]} 40. Nd4 {[%clk 0:00:11.9]} 40... a6 {[%clk 0:00:28.9]}
41. Nf3+ {[%clk 0:00:11]} 41... Kf5 {[%clk 0:00:28.7]} 42. h4 {[%clk 0:00:11.3]}
42... g4 {[%clk 0:00:28.1]} 43. Nd4+ {[%clk 0:00:11.1]} 43... Ke5 {[%clk
0:00:27.7]} 44. Ne2 {[%clk 0:00:11.4]} 44... Bb5 {[%clk 0:00:27]} 45. Nf4 {[%clk
0:00:11.1]} 45... Be8 {[%clk 0:00:27.1]} 46. Kd3 {[%clk 0:00:10.7]} 46... Bb5+
{[%clk 0:00:25.7]} 47. Ke3 {[%clk 0:00:10.2]} 47... d4+ {[%clk 0:00:24.2]} 48.
Kd2 {[%clk 0:00:09.7]} 48... Ke4 {[%clk 0:00:22.2]} 49. Nxh5 {[%clk 0:00:09]}
49... Kf3 {[%clk 0:00:22.5]} 50. Nf6 {[%clk 0:00:09]} 50... Kxf2 {[%clk
0:00:22.5]} 51. Nxg4+ {[%clk 0:00:09]} 51... Kxg3 {[%clk 0:00:23]} 52. Ne5
{[%clk 0:00:08.9]} 52... Kxh4 {[%clk 0:00:22.7]} 53. Nf3+ {[%clk 0:00:09.3]}
53... Kg3 {[%clk 0:00:22.2]} 54. Nxd4 {[%clk 0:00:10.2]} 54... Bc4 {[%clk
0:00:20.6]} 55. b3 {[%clk 0:00:09.7]} 55... Bd5 {[%clk 0:00:20.7]} 56. Kc3
{[%clk 0:00:09.8]} 56... Kf4 {[%clk 0:00:21]} 57. Kb4 {[%clk 0:00:09.5]} 57...
Ke5 {[%clk 0:00:21.2]} 58. Kc5 {[%clk 0:00:09.7]} 58... Bg2 {[%clk 0:00:19.6]}
59. Nc2 {[%clk 0:00:08.5]} 59... Ke6 {[%clk 0:00:19]} 60. Kb6 {[%clk 0:00:08.4]}
60... Kd7 {[%clk 0:00:19]} 61. Nb4 {[%clk 0:00:08.6]} 61... Kc8 {[%clk 0:00:19]}
62. Nd3 {[%clk 0:00:08.7]} 62... Kb8 {[%clk 0:00:19]} 63. Nc5 {[%clk 0:00:08.9]}
63... Ka8 {[%clk 0:00:18.8]} 64. b4 {[%clk 0:00:09.1]} 64... Bh1 {[%clk
0:00:18.9]} 65. a3 {[%clk 0:00:09.4]} 65... Bg2 {[%clk 0:00:19.1]} 66. Kc7
{[%clk 0:00:09.5]} 66... Bh1 {[%clk 0:00:19.3]} 67. Na4 {[%clk 0:00:09.3]} 67...
Bg2 {[%clk 0:00:18.5]} 68. Nb6+ {[%clk 0:00:09.4]} 68... Ka7 {[%clk 0:00:18.9]}
69. Nd7 {[%clk 0:00:09.6]} 69... Ka8 {[%clk 0:00:18.3]} 70. Nc5 {[%clk 0:00:10]}
70... Ka7 {[%clk 0:00:18.4]} 71. Kc8 {[%clk 0:00:09.7]} 71... Ka8 {[%clk
0:00:18]} 72. Kc7 {[%clk 0:00:09.9]} 1/2-1/2

[Event "*** Titled Tuesday Blitz"]
[Site "Chess.com"]
[Date "2020.10.20"]
[Round "1"]
[White "TimofeevAr"]
[Black "realmadridtv"]
[Result "1-0"]
[WhiteElo "2805"]
[BlackElo "2398"]
[TimeControl "180+1"]
[EndTime "10:08:17 PDT"]
[Termination "TimofeevAr won by resignation"]

1. e4 {[%clk 0:02:59.8]} 1... e5 {[%clk 0:02:59.7]} 2. Nf3 {[%clk 0:02:59.5]}
2... Nc6 {[%clk 0:03:00.1]} 3. Bb5 {[%clk 0:02:59]} 3... a6 {[%clk 0:02:59.5]}
4. Ba4 {[%clk 0:02:58.4]} 4... Nf6 {[%clk 0:02:59.7]} 5. d3 {[%clk 0:02:58.4]}
5... d6 {[%clk 0:02:56]} 6. c3 {[%clk 0:02:56.7]} 6... Be7 {[%clk 0:02:54.3]} 7.
O-O {[%clk 0:02:56.2]} 7... O-O {[%clk 0:02:54.5]} 8. Nbd2 {[%clk 0:02:55.7]}
8... b5 {[%clk 0:02:44.5]} 9. Bc2 {[%clk 0:02:55.1]} 9... Bg4 {[%clk 0:02:44.9]}
10. h3 {[%clk 0:02:54.3]} 10... Bh5 {[%clk 0:02:45.2]} 11. Re1 {[%clk
0:02:54.3]} 11... Re8 {[%clk 0:02:44.2]} 12. Nf1 {[%clk 0:02:54.2]} 12... d5
{[%clk 0:02:44]} 13. Ng3 {[%clk 0:02:51.2]} 13... Bg6 {[%clk 0:02:37.8]} 14. Qe2
{[%clk 0:02:48.4]} 14... Qd7 {[%clk 0:02:29.2]} 15. Nh4 {[%clk 0:02:43.7]} 15...
d4 {[%clk 0:02:10.4]} 16. Nhf5 {[%clk 0:02:38]} 16... dxc3 {[%clk 0:02:05.8]}
17. bxc3 {[%clk 0:02:37.3]} 17... b4 {[%clk 0:02:01.2]} 18. Nxe7+ {[%clk
0:02:21.3]} 18... Qxe7 {[%clk 0:01:57.7]} 19. Ba4 {[%clk 0:02:19.4]} 19... Qc5
{[%clk 0:01:52.8]} 20. Be3 {[%clk 0:02:14.8]} 20... Qd6 {[%clk 0:01:47.8]} 21.
cxb4 {[%clk 0:02:06.1]} 21... Red8 {[%clk 0:01:42.6]} 22. Bc5 {[%clk 0:01:57.3]}
22... Nd4 {[%clk 0:01:34.7]} 23. Qb2 {[%clk 0:01:39]} 23... Qe6 {[%clk
0:01:33.9]} 24. Ne2 {[%clk 0:01:36.8]} 24... Nf3+ {[%clk 0:01:09.9]} 25. gxf3
{[%clk 0:01:22.6]} 25... Rxd3 {[%clk 0:01:07.9]} 26. Ng3 {[%clk 0:01:05.1]}
26... Rxf3 {[%clk 0:01:02.4]} 27. Kg2 {[%clk 0:01:02.7]} 27... Rxg3+ {[%clk
0:00:38.6]} 28. fxg3 {[%clk 0:01:00]} 28... Bxe4+ {[%clk 0:00:37.4]} 29. Kh2
{[%clk 0:00:55.1]} 29... Ng4+ {[%clk 0:00:35.4]} 30. Kg1 {[%clk 0:00:55.2]}
30... Nf6 {[%clk 0:00:15.4]} 31. Qh2 {[%clk 0:00:47]} 31... h5 {[%clk
0:00:13.1]} 32. Rad1 {[%clk 0:00:42.6]} 32... Bb7 {[%clk 0:00:11.7]} 33. h4
{[%clk 0:00:20.9]} 33... a5 {[%clk 0:00:11.1]} 34. Bb3 {[%clk 0:00:20]} 34...
Qf5 {[%clk 0:00:09.7]} 35. Qf2 {[%clk 0:00:19.4]} 35... Qh3 {[%clk 0:00:09.3]}
36. Qh2 {[%clk 0:00:18.8]} 36... Qf5 {[%clk 0:00:09.3]} 37. Rf1 {[%clk
0:00:18.2]} 37... Qe4 {[%clk 0:00:09.5]} 38. Rde1 {[%clk 0:00:18.1]} 38... Qc6
{[%clk 0:00:08.1]} 39. Rxe5 {[%clk 0:00:16.8]} 39... Ng4 {[%clk 0:00:07.9]} 40.
Bxf7+ {[%clk 0:00:15.7]} 40... Kh7 {[%clk 0:00:07.1]} 41. Rxh5+ {[%clk 0:00:16]}
41... Nh6 {[%clk 0:00:07.8]} 42. Be3 {[%clk 0:00:14.9]} 42... Rf8 {[%clk
0:00:06.6]} 43. Bxh6 {[%clk 0:00:14.7]} 43... gxh6 {[%clk 0:00:07.2]} 44. Bd5
{[%clk 0:00:12.1]} 44... Rxf1+ {[%clk 0:00:05.8]} 45. Kxf1 {[%clk 0:00:12.4]}
45... Qc1+ {[%clk 0:00:06.4]} 46. Kg2 {[%clk 0:00:12.4]} 46... Qd2+ {[%clk
0:00:05.7]} 47. Kh3 {[%clk 0:00:07.2]} 47... Bc8+ {[%clk 0:00:05.7]} 48. g4
{[%clk 0:00:07.7]} 48... Qd3+ {[%clk 0:00:04.3]} 49. Qg3 {[%clk 0:00:07.6]}
49... Qf1+ {[%clk 0:00:04.4]} 50. Kh2 {[%clk 0:00:07.9]} 50... Qe2+ {[%clk
0:00:04.6]} 51. Bg2 {[%clk 0:00:08.1]} 51... Qe6 {[%clk 0:00:04.7]} 52. Rf5
{[%clk 0:00:07.9]} 52... Qg6 {[%clk 0:00:04.7]} 53. Rf4 {[%clk 0:00:07.9]} 53...
Be6 {[%clk 0:00:04.9]} 54. bxa5 {[%clk 0:00:07.3]} 54... Qg7 {[%clk 0:00:05]}
55. a6 {[%clk 0:00:07.5]} 55... Kh8 {[%clk 0:00:05.6]} 56. a7 {[%clk 0:00:07.9]}
56... Qg8 {[%clk 0:00:05.6]} 57. a8=Q {[%clk 0:00:08.2]} 1-0

[Event "*** Titled Tuesday Blitz"]
[Site "Chess.com"]
[Date "2020.10.20"]
[Round "1"]
[White "Kildepiotr"]
[Black "MF1966Idrisov"]
[Result "1-0"]
[WhiteElo "2660"]
[BlackElo "2324"]
[TimeControl "180+1"]
[EndTime "10:08:18 PDT"]
[Termination "Kildepiotr won by resignation"]

1. Nf3 {[%clk 0:03:00.9]} 1... c6 {[%clk 0:02:59.2]} 2. g3 {[%clk 0:03:00.8]}
2... d5 {[%clk 0:02:58.6]} 3. Bg2 {[%clk 0:03:01.4]} 3... Nf6 {[%clk 0:02:58.3]}
4. O-O {[%clk 0:03:02]} 4... Bf5 {[%clk 0:02:58.6]} 5. d3 {[%clk 0:03:02.9]}
5... h6 {[%clk 0:02:58.4]} 6. Nbd2 {[%clk 0:03:03.4]} 6... e6 {[%clk 0:02:58.4]}
7. Qe1 {[%clk 0:03:04]} 7... Be7 {[%clk 0:02:58.2]} 8. e4 {[%clk 0:03:04.6]}
8... dxe4 {[%clk 0:02:57.2]} 9. dxe4 {[%clk 0:03:05.5]} 9... Bg6 {[%clk
0:02:55.2]} 10. Ne5 {[%clk 0:03:04.5]} 10... Bh7 {[%clk 0:02:51.2]} 11. Qe2
{[%clk 0:03:04.4]} 11... Nbd7 {[%clk 0:02:50]} 12. Ndc4 {[%clk 0:03:03.1]} 12...
O-O {[%clk 0:02:48]} 13. Rd1 {[%clk 0:03:02.2]} 13... Qc8 {[%clk 0:02:40.9]} 14.
Nxd7 {[%clk 0:02:54.6]} 14... Nxd7 {[%clk 0:02:39.7]} 15. Bf4 {[%clk 0:02:54.5]}
15... Nb6 {[%clk 0:02:25]} 16. Nd6 {[%clk 0:02:51.8]} 16... Bxd6 {[%clk
0:02:25.2]} 17. Rxd6 {[%clk 0:02:48.9]} 17... Rd8 {[%clk 0:02:25]} 18. Rad1
{[%clk 0:02:48.4]} 18... Rxd6 {[%clk 0:02:24.9]} 19. Rxd6 {[%clk 0:02:47.8]}
19... Qe8 {[%clk 0:02:12]} 20. Qd3 {[%clk 0:02:45.4]} 20... Bg6 {[%clk
0:02:11.3]} 21. b3 {[%clk 0:02:41.8]} 21... Kh7 {[%clk 0:02:08.3]} 22. Qd4
{[%clk 0:02:34.4]} 22... Qe7 {[%clk 0:02:05]} 23. c4 {[%clk 0:02:28.7]} 23...
Re8 {[%clk 0:02:03.4]} 24. e5 {[%clk 0:02:18.1]} 24... Nc8 {[%clk 0:02:01.4]}
25. Rd7 {[%clk 0:02:17.4]} 25... Qa3 {[%clk 0:01:56.1]} 26. Rxb7 {[%clk
0:02:16.2]} 26... Qxa2 {[%clk 0:01:55.7]} 27. Bxc6 {[%clk 0:02:15.7]} 27... Rg8
{[%clk 0:01:30.1]} 28. Kg2 {[%clk 0:02:11.5]} 28... Qe2 {[%clk 0:01:22.7]} 29.
Bf3 {[%clk 0:02:10.1]} 29... Qc2 {[%clk 0:01:14.8]} 30. c5 {[%clk 0:02:06.9]}
30... Re8 {[%clk 0:01:07.2]} 31. c6 {[%clk 0:02:06.1]} 31... Ne7 {[%clk
0:01:00.8]} 32. Qc4 {[%clk 0:02:04]} 32... Qb1 {[%clk 0:00:55.5]} 33. Qc1 {[%clk
0:01:49]} 33... Qf5 {[%clk 0:00:49]} 34. Rxa7 {[%clk 0:01:41.4]} 34... Nd5
{[%clk 0:00:47.8]} 35. Qd2 {[%clk 0:01:31.7]} 35... Rc8 {[%clk 0:00:45.4]} 36.
Ra6 {[%clk 0:01:23.2]} 36... Qb1 {[%clk 0:00:41.6]} 37. h4 {[%clk 0:01:09.1]}
37... Qxb3 {[%clk 0:00:40.2]} 38. h5 {[%clk 0:01:04.3]} 38... Bd3 {[%clk
0:00:39.3]} 39. Ra7 {[%clk 0:01:01.2]} 39... Bf1+ {[%clk 0:00:35.3]} 40. Kxf1
{[%clk 0:00:56.9]} 40... Qxf3 {[%clk 0:00:35.2]} 41. Qc2+ {[%clk 0:00:53.4]}
41... Kg8 {[%clk 0:00:32.8]} 42. Kg1 {[%clk 0:00:51.1]} 42... Nxf4 {[%clk
0:00:28.5]} 43. gxf4 {[%clk 0:00:51.1]} 43... Qg4+ {[%clk 0:00:26.7]} 44. Kf1
{[%clk 0:00:50.9]} 44... Qh3+ {[%clk 0:00:25.9]} 45. Ke1 {[%clk 0:00:48]} 45...
Qh1+ {[%clk 0:00:25.5]} 46. Ke2 {[%clk 0:00:48]} 46... Qxc6 {[%clk 0:00:25]} 47.
Qxc6 {[%clk 0:00:46]} 47... Rxc6 {[%clk 0:00:24.9]} 48. Ra8+ {[%clk 0:00:46.2]}
48... Kh7 {[%clk 0:00:24.4]} 49. Rf8 {[%clk 0:00:46.2]} 49... Rc7 {[%clk
0:00:24.4]} 50. Kf3 {[%clk 0:00:45.8]} 50... Ra7 {[%clk 0:00:24.3]} 51. Kg4
{[%clk 0:00:45.7]} 51... Rb7 {[%clk 0:00:24.5]} 52. f5 {[%clk 0:00:45.9]} 52...
exf5+ {[%clk 0:00:23.9]} 53. Kxf5 {[%clk 0:00:46.8]} 53... g6+ {[%clk 0:00:24]}
54. hxg6+ {[%clk 0:00:46.2]} 54... fxg6+ {[%clk 0:00:24]} 55. Kf6 {[%clk
0:00:46.1]} 55... Rb2 {[%clk 0:00:23.4]} 56. f4 {[%clk 0:00:40.7]} 56... Rb4
{[%clk 0:00:22.5]} 57. f5 {[%clk 0:00:39.3]} 57... gxf5 {[%clk 0:00:21.8]} 58.
e6 {[%clk 0:00:39.4]} 58... Rb6 {[%clk 0:00:20.4]} 59. Kf7 {[%clk 0:00:38.2]}
59... f4 {[%clk 0:00:18.9]} 60. e7 {[%clk 0:00:38.1]} 60... Rb7 {[%clk
0:00:19.2]} 61. Kf6 {[%clk 0:00:38.1]} 61... Rb6+ {[%clk 0:00:19.2]} 62. Kf5
{[%clk 0:00:37.7]} 62... Rb5+ {[%clk 0:00:11]} 63. Kxf4 {[%clk 0:00:37.8]} 63...
Rb4+ {[%clk 0:00:11.5]} 64. Kf3 {[%clk 0:00:36.7]} 64... Rb3+ {[%clk 0:00:11.8]}
65. Ke2 {[%clk 0:00:36.9]} 65... Rb2+ {[%clk 0:00:11.7]} 66. Kd3 {[%clk
0:00:36.6]} 66... Rb3+ {[%clk 0:00:11]} 67. Kc4 {[%clk 0:00:35.1]} 67... Re3
{[%clk 0:00:10.8]} 68. e8=Q {[%clk 0:00:35.1]} 68... Rxe8 {[%clk 0:00:10.5]} 69.
Rxe8 {[%clk 0:00:36]} 69... Kg6 {[%clk 0:00:10.9]} 70. Re5 {[%clk 0:00:35]}
70... Kf6 {[%clk 0:00:10.3]} 71. Kd4 {[%clk 0:00:34.9]} 1-0